Workbook

Sheet 1
A1: 五金建材材料清单控制价
A2: 序号 | B2: 商品名称 | C2: 品牌 | D2: 规格/型号 | E2: 个 | F2: 数量 | G2: 单价 | H2: 金额
A3: =ROW()-2 -> 1 | B3: 铜护套线 | C3: 梅兴 | D3: BVVB 2*1.5㎜² | E3: 卷 | F3: 1.00 | G3: 250.00 | H3: =F3*G3 -> 250.00
A4: 2 | B4: 铜护套线 | C4: 梅兴 | D4: BVVB 2*2.5㎜² | E4: 卷 | F4: 1.00 | G4: 375.00 | H4: 375.00
A5: 3 | B5: 铜护套线 | C5: 梅兴 | D5: BVVB 2*4㎜² | E5: 卷 | F5: 1.00 | G5: 575.00 | H5: 575.00
A6: 4 | B6: 铜单线 | C6: 梅兴 | D6: 1.5BV | E6: 卷 | F6: 1.00 | G6: 123.00 | H6: 123.00
A7: 5 | B7: 铜单线 | C7: 梅兴 | D7: 2.5BV | E7: 卷 | F7: 1.00 | G7: 198.00 | H7: 198.00
A8: 6 | B8: 铜单线 | C8: 梅兴 | D8: 4BV | E8: 卷 | F8: 1.00 | G8: 317.00 | H8: 317.00
A9: 7 | B9: 铜单多股线 | C9: 梅兴 | D9: 1.5BVR | E9: 卷 | F9: 1.00 | G9: 130.00 | H9: 130.00
A10: 8 | B10: 铜单多股线 | C10: 梅兴 | D10: 2.5BVR | E10: 卷 | F10: 1.00 | G10: 210.00 | H10: 210.00
A11: 9 | B11: 铜单多股线 | C11: 梅兴 | D11: 4BVR | E11: 卷 | F11: 1.00 | G11: 336.00 | H11: 336.00
A12: 10 | B12: 铜单多股线 | C12: 梅兴 | D12: 6BVR | E12: 卷 | F12: 1.00 | G12: 502.00 | H12: 502.00
A13: 11 | B13: 铝护套线 | C13: 梅兴 | D13: 4BLVVB | E13: 卷 | F13: 1.00 | G13: 118.00 | H13: 118.00
A14: 12 | B14: 铝护套线 | C14: 梅兴 | D14: 6BLVVB | E14: 卷 | F14: 1.00 | G14: 156.00 | H14: 156.00
A15: 13 | B15: 铝电缆 | C15: 江河 | D15: 3*25+1*16 | E15: 米 | F15: 1.00 | G15: 11.60 | H15: 11.60
A16: 14 | B16: 铝电缆 | C16: 太平洋 | D16: 3*25+1+16 | E16: 米 | F16: 1.00 | G16: 13.60 | H16: 13.60
A17: 15 | B17: 铝电缆 | C17: 太平洋 | D17: 3*16+1+10 | E17: 米 | F17: 1.00 | G17: 8.20 | H17: 8.20
A18: 16 | B18: 电缆线 | C18: 梅兴 | D18: YZ 2*1.5㎜² | E18: 卷 | F18: 1.00 | G18: 230.00 | H18: 230.00
A19: 17 | B19: 电缆线 | C19: 梅兴 | D19: YZ 2*2.5㎜² | E19: 卷 | F19: 1.00 | G19: 350.00 | H19: 350.00
A20: 18 | B20: 电缆线 | D20: 国标YZ 2*2.5㎜² | E20: 卷 | F20: 1.00 | G20: 435.00 | H20: 435.00
A21: 19 | B21: 电缆线 | D21: 国标YZ 2*4㎜² | E21: 卷 | F21: 1.00 | G21: 520.00 | H21: 520.00
A22: =ROW()-2 -> 20 | B22: 电缆线 | C22: 梅兴 | D22: YZ 3*1.5㎜² | E22: 卷 | F22: 1.00 | G22: 340.00 | H22: =F22*G22 -> 340.00
A23: 21 | B23: 电缆线 | C23: 梅兴 | D23: YZ 3*2.5㎜² | E23: 卷 | F23: 1.00 | G23: 460.00 | H23: 460.00
A24: 22 | B24: 电缆线 | C24: 梅兴 | D24: YZ 3*4㎜² | E24: 卷 | F24: 1.00 | G24: 1,180.00 | H24: 1,180.00
A25: 23 | B25: 电缆线 | C25: 梅兴 | D25: YZ 3*6㎜² | E25: 卷 | F25: 1.00 | G25: 1,400.00 | H25: 1,400.00
A26: 24 | B26: 电缆线 | D26: 国标YZ 3*6㎜² | E26: 卷 | F26: 1.00 | G26: 1,480.00 | H26: 1,480.00
A27: 25 | B27: 电缆线 | D27: 国标YZ 5*16㎜² | E27: 米 | F27: 1.00 | G27: 58.00 | H27: 58.00
A28: 26 | B28: 电视线 | E28: 卷 | F28: 1.00 | G28: 150.00 | H28: 150.00
A29: 27 | B29: 网络线 | D29: 五类 | E29: 卷 | F29: 1.00 | G29: 460.00 | H29: 460.00
A30: 28 | B30: 音响线 | D30: 500型 | E30: 卷 | F30: 1.00 | G30: 120.00 | H30: 120.00
A31: 29 | B31: 放线器 | D31: 50米 | E31: 个 | F31: 1.00 | G31: 156.00 | H31: 156.00
A32: 30 | B32: 接线端子 | E32: 个 | F32: 10.00 | G32: 0.50 | H32: 5.00
A33: 31 | B33: 水晶头 | E33: 个 | F33: 1.00 | G33: 0.80 | H33: 0.80
A34: 32 | B34: PVC管钳 | E34: 把 | F34: 1.00 | G34: 26.00 | H34: 26.00
A35: 33 | B35: 弯管器 | D35: 16.00 | E35: 根 | F35: 1.00 | G35: 6.00 | H35: 6.00
A36: 34 | B36: 弯管器 | D36: 20.00 | E36: 根 | F36: 1.00 | G36: 6.00 | H36: 6.00
A37: 35 | B37: 弯管器 | D37: 25.00 | E37: 根 | F37: 1.00 | G37: 8.00 | H37: 8.00
A38: =ROW()-2 -> 36 | B38: 线管 | C38: 日丰 | D38: 16*2.6米 | E38: 根 | F38: 4.00 | G38: 3.50 | H38: =F38*G38 -> 14.00
A39: 37 | B39: 线管 | C39: 日丰 | D39: 20*2.6米 | E39: 根 | F39: 4.00 | G39: 4.30 | H39: 17.20
A40: 38 | B40: 线管 | C40: 日丰 | D40: 25*2.6米 | E40: 根 | F40: 4.00 | G40: 6.50 | H40: 26.00
A41: 39 | B41: 线管 | C41: 松塑 | D41: 16*3米中型 | E41: 根 | F41: 4.00 | G41: 3.00 | H41: 12.00
A42: 40 | B42: 线管 | C42: 松塑 | D42: 20*3米中型 | E42: 根 | F42: 4.00 | G42: 4.60 | H42: 18.40
A43: 41 | B43: 线管 | C43: 松塑 | D43: 25*3米中型 | E43: 根 | F43: 4.00 | G43: 6.40 | H43: 25.60
A44: 42 | B44: 管卡 | C44: 松塑 | D44: 16.00 | E44: 包 | F44: 2.00 | G44: 6.00 | H44: 12.00
A45: 43 | B45: 管卡 | C45: 松塑 | D45: 20.00 | E45: 包 | F45: 2.00 | G45: 7.00 | H45: 14.00
A46: 44 | B46: 管卡 | C46: 松塑 | D46: 25.00 | E46: 包 | F46: 2.00 | G46: 10.00 | H46: 20.00
A47: 45 | B47: 线槽 | C47: 松塑 | D47: PVC24X14A | E47: 根 | F47: 2.00 | G47: 4.80 | H47: 9.60
A48: 46 | B48: 线槽 | C48: 松塑 | D48: PVC30X15A | E48: 根 | F48: 2.00 | G48: 5.80 | H48: 11.60
A49: 47 | B49: 线槽 | C49: 松塑 | D49: PVC39X19A | E49: 根 | F49: 2.00 | G49: 8.50 | H49: 17.00
A50: 48 | B50: 线槽 | C50: 松塑 | D50: PVC24X14B | E50: 根 | F50: 2.00 | G50: 4.00 | H50: 8.00
A51: 49 | B51: 线槽 | C51: 松塑 | D51: PVC30X15B | E51: 根 | F51: 2.00 | G51: 4.80 | H51: 9.60
A52: 50 | B52: 线槽 | C52: 松塑 | D52: PVC39X19B | E52: 根 | F52: 2.00 | G52: 7.80 | H52: 15.60
A53: 51 | B53: 插座 | C53: 公牛 | D53: 无线 A03 | E53: 个 | F53: 2.00 | G53: 13.00 | H53: 26.00
A54: 52 | B54: 插座 | C54: 公牛 | D54: 无线 618 | E54: 个 | F54: 2.00 | G54: 15.00 | H54: 30.00
A55: 53 | B55: 带线插座 | C55: 劳特 | D55: 1.5米 | E55: 个 | F55: 2.00 | G55: 22.00 | H55: 44.00
A56: 54 | B56: 带线插座 | C56: 公牛 | D56: 1.8米 212 | E56: 个 | F56: 2.00 | G56: 30.00 | H56: 60.00
A57: 55 | B57: 带线插座 | C57: 公牛 | D57: 3米 212 | E57: 个 | F57: 2.00 | G57: 37.00 | H57: 74.00
A58: 56 | B58: 带线插座 | C58: 公牛 | D58: 1.8米 609 | E58: 个 | F58: 2.00 | G58: 37.00 | H58: 74.00
A59: 57 | B59: 带线插座 | C59: 公牛 | D59: 3米 609 | E59: 个 | F59: 2.00 | G59: 43.00 | H59: 86.00
A60: 58 | B60: 带线插座 | C60: 公牛 | D60: 5米 609 | E60: 个 | F60: 2.00 | G60: 55.00 | H60: 110.00
A61: 59 | B61: 二插头 | C61: 公牛 | D61: 10A | E61: 个 | F61: 2.00 | G61: 3.00 | H61: 6.00
A62: 60 | B62: 三插头 | C62: 公牛 | D62: 10A | E62: 个 | F62: 2.00 | G62: 4.50 | H62: 9.00
A63: 61 | B63: 三插头 | C63: 公牛 | D63: 16A | E63: 个 | F63: 2.00 | G63: 5.50 | H63: 11.00
A64: 62 | B64: 二插头 | C64: 荣万家 | D64: 10A | E64: 个 | F64: 2.00 | G64: 1.50 | H64: 3.00
A65: 63 | B65: 三插头 | C65: 荣万家 | D65: 10A | E65: 个 | F65: 2.00 | G65: 3.00 | H65: 6.00
A66: 64 | B66: 一开关双控 | C66: 捷燕 | D66: 86型E | E66: 个 | F66: 2.00 | G66: 6.00 | H66: 12.00
A67: 65 | B67: 二开关双控 | C67: 捷燕 | D67: 86型E | E67: 个 | F67: 2.00 | G67: 6.60 | H67: 13.20
A68: 66 | B68: 三开关双控 | C68: 捷燕 | D68: 86型E | E68: 个 | F68: 2.00 | G68: 9.30 | H68: 18.60
A69: 67 | B69: 四开关双控 | C69: 捷燕 | D69: 86型E | E69: 个 | F69: 2.00 | G69: 12.00 | H69: 24.00
A70: 68 | B70: 五孔插座 | C70: 捷燕 | D70: 86型E | E70: 个 | F70: 2.00 | G70: 6.00 | H70: 12.00
A71: 69 | B71: 七孔插座 | C71: 捷燕 | D71: 86型E | E71: 个 | F71: 2.00 | G71: 6.60 | H71: 13.20
A72: 70 | B72: 一开双控五孔插座 | C72: 捷燕 | D72: 86型E | E72: 个 | F72: 2.00 | G72: 7.20 | H72: 14.40
A73: 71 | B73: 二开双控五孔插座 | C73: 捷燕 | D73: 86型E | E73: 个 | F73: 2.00 | G73: 10.00 | H73: 20.00
A74: 72 | B74: 电视插座 | C74: 捷燕 | D74: 86型E | E74: 个 | F74: 2.00 | G74: 5.50 | H74: 11.00
A75: 73 | B75: 电脑插座 | C75: 捷燕 | D75: 86型E | E75: 个 | F75: 2.00 | G75: 9.00 | H75: 18.00
A76: 74 | B76: 调速器 | C76: 捷燕 | D76: 86型E | E76: 个 | F76: 2.00 | G76: 11.00 | H76: 22.00
A77: 75 | B77: 空调插座 | C77: 捷燕 | D77: 86型E | E77: 个 | F77: 2.00 | G77: 9.00 | H77: 18.00
A78: =ROW()-2 -> 76 | B78: 一开关双控 | C78: 公牛 | D78: G07 | E78: 个 | F78: 2.00 | G78: 14.00 | H78: =F78*G78 -> 28.00
A79: 77 | B79: 二开关双控 | C79: 公牛 | D79: G07 | E79: 个 | F79: 30.00 | G79: 20.50 | H79: 615.00
A80: 78 | B80: 三开关双控 | C80: 公牛 | D80: G07 | E80: 个 | F80: 2.00 | G80: 28.00 | H80: 56.00
A81: 79 | B81: 四开关双控 | C81: 公牛 | D81: G07 | E81: 个 | F81: 2.00 | G81: 35.00 | H81: 70.00
A82: 80 | B82: 五孔插座 | C82: 公牛 | D82: G07 | E82: 个 | F82: 2.00 | G82: 11.80 | H82: 23.60
A83: 81 | B83: 七孔插座 | C83: 公牛 | D83: G07 | E83: 个 | F83: 2.00 | G83: 20.00 | H83: 40.00
A84: 82 | B84: 一开双控五孔插座 | C84: 公牛 | D84: G07 | E84: 个 | F84: 10.00 | G84: 25.00 | H84: 250.00
A85: 83 | B85: 电视插座 | C85: 公牛 | D85: G07 | E85: 个 | F85: 2.00 | G85: 24.00 | H85: 48.00
A86: 84 | B86: 电脑插座 | C86: 公牛 | D86: G07 | E86: 个 | F86: 2.00 | G86: 26.00 | H86: 52.00
A87: 85 | B87: 调速器 | C87: 公牛 | D87: G07 | E87: 个 | F87: 2.00 | G87: 50.00 | H87: 100.00
A88: 86 | B88: 空调插座 | C88: 公牛 | D88: G07 | E88: 个 | F88: 2.00 | G88: 16.80 | H88: 33.60
A89: 87 | B89: 空白面板 | C89: 捷燕 | D89: 86型E | E89: 个 | F89: 20.00 | G89: 2.00 | H89: 40.00
A90: 88 | B90: 电视电脑 | C90: 捷燕 | D90: 86型E | E90: 个 | F90: 2.00 | G90: 12.00 | H90: 24.00
A91: 89 | B91: 门禁开关 | C91: 捷燕 | D91: 86型E | E91: 个 | F91: 2.00 | G91: 8.00 | H91: 16.00
A92: 90 | B92: 明盒 | C92: 捷燕 | D92: 86型 | E92: 个 | F92: 16.00 | G92: 1.00 | H92: 16.00
A93: 91 | B93: 五孔插座配明盒 | C93: 捷燕 | D93: 86型A16 | E93: 个 | F93: 24.00 | G93: 8.00 | H93: 192.00
A94: 92 | B94: 防溅盒 | D94: 86型 | E94: 个 | F94: 10.00 | G94: 2.30 | H94: 23.00
A95: 93 | B95: 户外防水插座 | E95: 套 | F95: 1.00 | G95: 18.00 | H95: 18.00
A96: 94 | B96: 线盒修复器 | D96: 86型 | E96: 个 | F96: 2.00 | G96: 1.00 | H96: 2.00
A97: 95 | B97: 千兆路由器 | E97: 个 | F97: 1.00 | G97: 208.00 | H97: 208.00
A98: 96 | B98: 键盘 | E98: 个 | F98: 1.00 | G98: 48.00 | H98: 48.00
A99: 97 | B99: 8路监控专用交换机 | E99: 个 | F99: 1.00 | G99: 200.00 | H99: 200.00
A100: 98 | B100: 550W无油机电机 | E100: 个 | F100: 1.00 | G100: 350.00 | H100: 350.00
A101: 99 | B101: 电源适配器 | E101: 个 | F101: 1.00 | G101: 35.00 | H101: 35.00
A102: 100 | B102: 10KV高压电笔 | E102: 支 | F102: 1.00 | G102: 60.00 | H102: 60.00
A103: 101 | B103: 12V灯带条 | E103: 条 | F103: 1.00 | G103: 12.50 | H103: 12.50
A104: =ROW()-2 -> 102 | B104: 大功率灯带插头 | E104: 根 | F104: 1.00 | G104: 8.00 | H104: 8.00
A105: 103 | B105: 电工刀 | C105: 威力狮 | E105: 把 | F105: 1.00 | G105: 18.00 | H105: 18.00
A106: 104 | B106: 电笔 | E106: 支 | F106: 2.00 | G106: 2.00 | H106: 4.00
A107: 105 | B107: 数字电笔 | E107: 支 | F107: 2.00 | G107: 4.00 | H107: 8.00
A108: 106 | B108: 启辉器 | E108: 个 | F108: 2.00 | G108: 4.00 | H108: 8.00
A109: 107 | B109: 触发器 | D109: 220V | E109: 个 | F109: 2.00 | G109: 20.00 | H109: 40.00
A110: 108 | B110: 摇表 | D110: 1000V | E110: 个 | F110: 2.00 | G110: 200.00 | H110: =F110*G110 -> 400.00
A111: 109 | B111: 万用表线 | E111: 付 | F111: 2.00 | G111: 5.00 | H111: 10.00
A112: 110 | B112: 万用表 | E112: 个 | F112: 2.00 | G112: 68.00 | H112: 136.00
A113: 111 | B113: 钳形万用表 | E113: 个 | F113: 2.00 | G113: 68.00 | H113: 136.00
A114: 112 | B114: 三相四线电子表 | C114: 华一 | D114: 3X4X1.5(6)A | E114: 个 | F114: 2.00 | G114: 118.00 | H114: 236.00
A115: 113 | B115: 三相四线电子表 | C115: 天正 | D115: 3X4X1.5(6)A | E115: 个 | F115: 7.00 | G115: 208.00 | H115: 1,456.00
A116: 114 | B116: 三相四线电子表 | C116: 天正 | D116: 3X4X30（100）A | E116: 个 | F116: 2.00 | G116: 236.00 | H116: 472.00
A117: =ROW()-2 -> 115 | B117: 三相四线电子表 | C117: 正泰 | D117: 3X4X1.5(6)A | E117: 个 | F117: 2.00 | G117: 272.00 | H117: =F117*G117 -> 544.00
A118: 116 | B118: 三相四线电子表 | C118: 正泰 | D118: 3X4X30（100）A | E118: 个 | F118: 2.00 | G118: 292.00 | H118: 584.00
A119: 117 | B119: 空气开关 | C119: 正泰 | D119: NXB-1P 10-32A | E119: 个 | F119: 2.00 | G119: 7.20 | H119: 14.40
A120: 118 | B120: 空气开关 | C120: 正泰 | D120: NXB-1P 40A | E120: 个 | F120: 3.00 | G120: 8.00 | H120: 24.00
A121: 119 | B121: 空气开关 | C121: 正泰 | D121: NXB-1P 63A | E121: 个 | F121: 2.00 | G121: 8.50 | H121: 17.00
A122: 120 | B122: 空气开关 | C122: 正泰 | D122: NXB-2P 10-32A | E122: 个 | F122: 5.00 | G122: 15.00 | H122: 75.00
A123: 121 | B123: 空气开关 | C123: 正泰 | D123: NXB-2P 40A | E123: 个 | F123: 2.00 | G123: 17.00 | H123: 34.00
A124: 122 | B124: 空气开关 | C124: 正泰 | D124: NXB-2P 63A | E124: 个 | F124: 2.00 | G124: 18.00 | H124: 36.00
A125: 123 | B125: 空气开关 | C125: 正泰 | D125: NXB-3P 10-32A | E125: 个 | F125: 2.00 | G125: 22.00 | H125: 44.00
A126: 124 | B126: 空气开关 | C126: 正泰 | D126: NXB-3P 40A | E126: 个 | F126: 2.00 | G126: 25.00 | H126: 50.00
A127: 125 | B127: 空气开关 | C127: 正泰 | D127: NXB-3P 63A | E127: 个 | F127: 2.00 | G127: 26.50 | H127: 53.00
A128: 126 | B128: 空气开关 | C128: 正泰 | D128: NXB-4P 10-32A | E128: 个 | F128: 2.00 | G128: 30.00 | H128: 60.00
A129: 127 | B129: 空气开关 | C129: 正泰 | D129: NXB-4P 40A | E129: 个 | F129: 2.00 | G129: 34.50 | H129: 69.00
A130: 128 | B130: 空气开关 | C130: 正泰 | D130: NXB-4P 63A | E130: 个 | F130: 8.00 | G130: 36.00 | H130: 288.00
A131: 129 | B131: 空气开关 | C131: 正泰 | D131: NXB-125 1P 100A | E131: 个 | F131: 2.00 | G131: 21.50 | H131: 43.00
A132: 130 | B132: 空气开关 | C132: 正泰 | D132: NXB-125 2P 100A | E132: 个 | F132: 2.00 | G132: 45.00 | H132: 90.00
A133: 131 | B133: 空气开关 | C133: 正泰 | D133: NXB-125 3P 100A | E133: 个 | F133: 2.00 | G133: 62.00 | H133: 124.00
A134: 132 | B134: 空气开关 | C134: 正泰 | D134: NXB-125 4P 80A | E134: 个 | F134: 2.00 | G134: 95.00 | H134: 190.00
A135: 133 | B135: 空气开关 | C135: 正泰 | D135: NXB-125 4P 100A | E135: 个 | F135: 2.00 | G135: 98.00 | H135: 196.00
A136: 134 | B136: 漏电空气开关 | C136: 正泰 | D136: NXBLE-1P 10-32A | E136: 个 | F136: 2.00 | G136: 25.00 | H136: 50.00
A137: 135 | B137: 漏电空气开关 | C137: 正泰 | D137: NXBLE-1P 40A | E137: 个 | F137: 2.00 | G137: 35.00 | H137: 70.00
A138: 136 | B138: 漏电空气开关 | C138: 正泰 | D138: NXBLE-1P 63A | E138: 个 | F138: 2.00 | G138: 37.00 | H138: 74.00
A139: 137 | B139: 漏电空气开关 | C139: 正泰 | D139: NXBLE-2P 10-32A | E139: 个 | F139: 2.00 | G139: 34.00 | H139: 68.00
A140: 138 | B140: 漏电空气开关 | C140: 正泰 | D140: NXBLE-2P 40A | E140: 个 | F140: 6.00 | G140: 44.00 | H140: 264.00
A141: 139 | B141: 漏电空气开关 | C141: 正泰 | D141: NXBLE-2P 63A | E141: 个 | F141: 2.00 | G141: 47.00 | H141: 94.00
A142: 140 | B142: 漏电空气开关 | C142: 正泰 | D142: NXBLE-3P 10-32A | E142: 个 | F142: 2.00 | G142: 52.00 | H142: 104.00
A143: 141 | B143: 漏电空气开关 | C143: 正泰 | D143: NXBLE-3P 40A | E143: 个 | F143: 4.00 | G143: 59.00 | H143: 236.00
A144: 142 | B144: 漏电空气开关 | C144: 正泰 | D144: NXBLE-3P 63A | E144: 个 | F144: 2.00 | G144: 63.00 | H144: 126.00
A145: 143 | B145: 漏电空气开关 | C145: 正泰 | D145: NXBLE-4P 10-32A | E145: 个 | F145: 2.00 | G145: 60.00 | H145: 120.00
A146: 144 | B146: 漏电空气开关 | C146: 正泰 | D146: NXBLE-4P 40A | E146: 个 | F146: 2.00 | G146: 77.00 | H146: 154.00
A147: 145 | B147: 漏电空气开关 | C147: 正泰 | D147: NXBLE-4P 63A | E147: 个 | F147: 2.00 | G147: 82.00 | H147: 164.00
A148: 146 | B148: 交流接触器 | D148: CJ19-63/21 | E148: 个 | F148: 1.00 | G148: 175.00 | H148: 175.00
A149: 147 | B149: 交流接触器 | C149: 正泰 | D149: CJX2-3210 | E149: 个 | F149: 2.00 | G149: 89.00 | H149: 178.00
A150: 148 | B150: 交流接触器 | C150: 正泰 | D150: NXC-32 | E150: 个 | F150: 2.00 | G150: 75.00 | H150: 150.00
A151: 149 | B151: 电流互感器 | C151: 正泰 | D151: 30型 150/5A 0.5级 (多电流比） | E151: 个 | F151: 2.00 | G151: 34.00 | H151: 68.00
A152: 150 | B152: 电流互感器 | C152: 正泰 | D152: 30型 200/5A 0.5级 (多电流比） | E152: 个 | F152: 2.00 | G152: 33.00 | H152: 66.00
A153: 151 | B153: 电流互感器 | C153: 正泰 | D153: 30型 250/5A 0.5级 | E153: 个 | F153: 2.00 | G153: 33.00 | H153: 66.00
A154: 152 | B154: 电流互感器 | C154: 正泰 | D154: 30型 300/5A 0.5级 | E154: 个 | F154: 2.00 | G154: 33.00 | H154: 66.00
A155: 153 | B155: 电流互感器 | C155: 正泰 | D155: 50型 400/5A 0.5级 | E155: 个 | F155: 2.00 | G155: 35.00 | H155: =F155*G155 -> 70.00
A156: 154 | B156: 电流互感器 | C156: 正泰 | D156: 50型 500/5A 0.5级 | E156: 个 | F156: 2.00 | G156: 35.00 | H156: 70.00
A157: 155 | B157: 电流互感器 | C157: 正泰 | D157: 50型 600/5A 0.5级 | E157: 个 | F157: 2.00 | G157: 36.00 | H157: 72.00
A158: 156 | B158: 电流互感器 | C158: 天正 | D158: 50型 400/5A 0.2级 | E158: 个 | F158: 2.00 | G158: 68.00 | H158: 136.00
A159: 157 | B159: 空气开关 | C159: 天正 | D159: NXB-1P 10-32A | E159: 个 | F159: 2.00 | G159: 6.80 | H159: 13.60
A160: 158 | B160: 空气开关 | C160: 天正 | D160: NXB-1P 40A | E160: 个 | F160: 2.00 | G160: 7.50 | H160: 15.00
A161: 159 | B161: 空气开关 | C161: 天正 | D161: NXB-1P 63A | E161: 个 | F161: 2.00 | G161: 8.00 | H161: 16.00
A162: 160 | B162: 空气开关 | C162: 天正 | D162: NXB-2P 10-32A | E162: 个 | F162: 2.00 | G162: 14.00 | H162: 28.00
A163: 161 | B163: 空气开关 | C163: 天正 | D163: NXB-2P 40A | E163: 个 | F163: 2.00 | G163: 16.00 | H163: 32.00
A164: 162 | B164: 空气开关 | C164: 天正 | D164: NXB-2P 63A | E164: 个 | F164: 2.00 | G164: 17.00 | H164: 34.00
A165: 163 | B165: 空气开关 | C165: 天正 | D165: NXB-3P 10-32A | E165: 个 | F165: 2.00 | G165: 20.00 | H165: 40.00
A166: 164 | B166: 空气开关 | C166: 天正 | D166: NXB-3P 40A | E166: 个 | F166: 2.00 | G166: 23.00 | H166: 46.00
A167: 165 | B167: 空气开关 | C167: 天正 | D167: NXB-3P 63A | E167: 个 | F167: 2.00 | G167: 25.00 | H167: 50.00
A168: 166 | B168: 空气开关 | C168: 天正 | D168: NXB-4P 10-32A | E168: 个 | F168: 2.00 | G168: 28.00 | H168: 56.00
A169: 167 | B169: 空气开关 | C169: 天正 | D169: NXB-4P 40A | E169: 个 | F169: 2.00 | G169: 32.00 | H169: 64.00
A170: 168 | B170: 空气开关 | C170: 天正 | D170: NXB-4P 63A | E170: 个 | F170: 2.00 | G170: 33.00 | H170: 66.00
A171: 169 | B171: 空气开关 | C171: 天正 | D171: NXB-125 1P 100A | E171: 个 | F171: 2.00 | G171: 18.00 | H171: 36.00
A172: 170 | B172: 空气开关 | C172: 天正 | D172: NXB-125 2P 100A | E172: 个 | F172: 2.00 | G172: 37.00 | H172: 74.00
A173: 171 | B173: 空气开关 | C173: 天正 | D173: NXB-125 3P 100A | E173: 个 | F173: 2.00 | G173: 55.00 | H173: 110.00
A174: 172 | B174: 空气开关 | C174: 天正 | D174: NXB-125 4P 80A | E174: 个 | F174: 2.00 | G174: 75.00 | H174: 150.00
A175: 173 | B175: 空气开关 | C175: 天正 | D175: NXB-125 4P 100A | E175: 个 | F175: 2.00 | G175: 75.00 | H175: 150.00
A176: 174 | B176: 漏电空气开关 | C176: 天正 | D176: NXBLE-1P 10-32A | E176: 个 | F176: 2.00 | G176: 20.00 | H176: 40.00
A177: 175 | B177: 漏电空气开关 | C177: 天正 | D177: NXBLE-1P 40A | E177: 个 | F177: 2.00 | G177: 28.00 | H177: 56.00
A178: 176 | B178: 漏电空气开关 | C178: 天正 | D178: NXBLE-1P 63A | E178: 个 | F178: 2.00 | G178: 31.00 | H178: 62.00
A179: 177 | B179: 漏电空气开关 | C179: 天正 | D179: NXBLE-2P 10-32A | E179: 个 | F179: 2.00 | G179: 28.00 | H179: 56.00
A180: 178 | B180: 漏电空气开关 | C180: 天正 | D180: NXBLE-2P 40A | E180: 个 | F180: 2.00 | G180: 33.00 | H180: =F180*G180 -> 66.00
A181: =ROW()-2 -> 179 | B181: 漏电空气开关 | C181: 天正 | D181: NXBLE-2P 63A | E181: 个 | F181: 2.00 | G181: 37.00 | H181: 74.00
A182: =ROW()-2 -> 180 | B182: 漏电空气开关 | C182: 天正 | D182: NXBLE-3P 10-32A | E182: 个 | F182: 2.00 | G182: 38.00 | H182: 76.00
A183: =ROW()-2 -> 181 | B183: 漏电空气开关 | C183: 天正 | D183: NXBLE-3P 40A | E183: 个 | F183: 2.00 | G183: 44.00 | H183: 88.00
A184: =ROW()-2 -> 182 | B184: 漏电空气开关 | C184: 天正 | D184: NXBLE-3P 63A | E184: 个 | F184: 2.00 | G184: 46.00 | H184: 92.00
A185: =ROW()-2 -> 183 | B185: 380V100A塑壳空气开关 | E185: 个 | F185: 1.00 | G185: 105.00 | H185: 105.00
A186: 184 | B186: 380V200A塑壳空气开关 | E186: 个 | F186: 1.00 | G186: 220.00 | H186: 220.00
A187: =ROW()-2 -> 185 | B187: 380V630A塑壳空气开关 | E187: 个 | F187: 1.00 | G187: 550.00 | H187: 550.00
A188: 186 | B188: 交流接触器 | C188: 天正 | D188: CJX2-3210 | E188: 个 | F188: 2.00 | G188: 63.00 | H188: 126.00
A189: 187 | B189: 交流接触器 | C189: 天正 | D189: NXC-32 | E189: 个 | F189: 2.00 | G189: 63.00 | H189: 126.00
A190: 188 | B190: 电流互感器 | C190: 天正 | D190: 500/5A | E190: 个 | F190: 2.00 | G190: 32.00 | H190: 64.00
A191: 189 | B191: 电流互感器 | C191: 天正 | D191: 200/5A | E191: 个 | F191: 2.00 | G191: 30.00 | H191: 60.00
A192: 190 | B192: 电流互感器 | C192: 天正 | D192: 150/5A | E192: 个 | F192: 2.00 | G192: 31.00 | H192: 62.00
A193: =ROW()-2 -> 191 | B193: 开关电源 | D193: 5V350W | E193: 个 | F193: 1.00 | G193: 150.00 | H193: =F193*G193 -> 150.00
A194: 192 | B194: 开关电源 | D194: 12V350W | E194: 个 | F194: 1.00 | G194: 150.00 | H194: 150.00
A195: 193 | B195: 开关电源 | D195: 24V350W | E195: 个 | F195: 1.00 | G195: 155.00 | H195: 155.00
A196: 194 | B196: 指示灯（正泰） | D196: 正泰 | E196: 个 | F196: 1.00 | G196: 4.50 | H196: 4.50
A197: 195 | B197: 旋钮开关（正泰） | E197: 个 | F197: 1.00 | G197: 8.50 | H197: 8.50
A198: 196 | B198: 信号灯（正泰） | D198: ND16-22DS/4 AC 380V 红 正泰 | E198: 个 | F198: 1.00 | G198: 5.50 | H198: 5.50
A199: 197 | B199: 光电开关 | D199: EK51-R6M4 | E199: 个 | F199: 1.00 | G199: 200.00 | H199: 200.00
A200: 198 | B200: 光电开关 | D200: E3JK-DR12 | E200: 个 | F200: 1.00 | G200: 95.00 | H200: 95.00
... 1095 more rows
